bitfinex/quotes_ETHUSD_20241207
["timestamp","ask_amount","ask_price","bid_price","bid_amount"]
[1733614309767,2.12401771,4011.1,4010.4,0.7798]
[1733614309999,0.18654811,4011.0,4010.4,0.7798]
[1733614310202,0.8316,4011.1,4010.4,0.7798]
[1733614311470,2.57675,4011.1,4010.3,1.07893146]
[1733614311661,1.74522,4011.0,4010.3,1.07893146]
[1733614311860,0.3623264,4011.0,4010.3,1.07893146]
[1733614312368,2.1075464,4011.0,4010.1,0.7798]
[1733614312607,1.74533,4010.8,4009.9,0.7798]
[1733614312896,1.74533,4010.8,4010.0,1.07893146]
[1733614313302,1.40877036,4011.0,4010.0,1.07893146]
[1733614313501,1.24339471,4010.9,4010.0,1.07893146]
[1733614313739,0.38072938,4010.9,4010.0,1.07893146]
[1733614313913,2.12597938,4010.9,4010.0,1.07893146]
[1733614315207,1.74528,4010.8,4010.0,1.07893146]
[1733614315927,1.87534841,4011.1,4010.3,1.07893146]
[1733614316233,4.94657601,4011.0,4010.3,1.07893146]
[1733614316514,2.15789828,4010.9,4010.3,1.07893146]
[1733614316697,0.86304304,4010.8,4010.3,1.07893146]
[1733614316905,2.78896841,4011.0,4010.3,1.07893146]
[1733614317080,3.20184591,4010.9,4010.3,1.07893146]
[1733614317410,0.863239,4010.8,4010.3,1.07893146]
[1733614317614,0.863239,4010.7,4010.3,1.07893146]
[1733614317771,2.78898841,4010.9,4010.3,1.07893146]
[1733614317975,2.15863245,4010.8,4010.3,1.07893146]
[1733614318209,0.86345298,4010.7,4010.3,1.07893146]
[1733614318413,1.04374841,4010.8,4010.3,1.07893146]
[1733614318772,0.86356849,4010.7,4010.3,1.07893146]
[1733614318975,0.86360453,4010.6,4010.3,1.07893146]
[1733614319175,1.04374841,4010.8,4010.3,1.07893146]
[1733614319398,2.15893533,4010.7,4010.3,1.07893146]
[1733614319626,0.86357413,4010.6,4010.3,1.07893146]
[1733614319915,1.04374841,4010.8,4010.3,1.07893146]
[1733614320089,2.15892002,4010.7,4010.3,1.07893146]
[1733614320275,0.86356801,4010.6,4010.3,1.07893146]
[1733614320475,1.04374841,4010.7,4010.3,1.07893146]
[1733614320818,2.15891643,4010.6,4010.3,1.07893146]
[1733614320978,0.86356657,4010.5,4010.3,1.07893146]
[1733614321310,1.04374841,4010.8,4010.3,1.07893146]
[1733614321514,2.15870258,4010.7,4010.3,1.07893146]
[1733614321690,1.04374841,4010.8,4010.3,1.07893146]
[1733614321691,0.86348103,4010.6,4010.3,1.07893146]
[1733614321887,1.04374841,4010.8,4010.3,1.07893146]
[1733614322115,2.15870443,4010.7,4010.3,1.07893146]
[1733614322321,2.15870443,4010.6,4010.3,1.07893146]
[1733614322492,1.04374841,4010.7,4010.3,1.07893146]
[1733614322689,2.15850598,4010.6,4009.9,0.7798]
[1733614322903,0.86340569,4010.5,4010.0,1.07893146]
[1733614323073,1.04374841,4010.7,4010.0,1.07893146]
[1733614323280,0.86337568,4010.6,4010.0,1.07893146]
[1733614323480,2.78903841,4010.8,4010.0,1.07893146]
[1733614323713,2.15831913,4010.7,4010.0,1.07893146]
[1733614323914,0.86332765,4010.6,4010.0,1.07893146]
[1733614324119,2.78903841,4010.8,4010.0,1.07893146]
[1733614324281,2.1582418,4010.7,4010.0,1.07893146]
[1733614324485,0.86329672,4010.6,4010.0,1.07893146]
[1733614324687,2.78903841,4010.8,4010.0,1.07893146]
[1733614324879,2.15821671,4010.7,4010.0,1.07893146]
[1733614325082,0.86328668,4010.6,4010.0,1.07893146]
[1733614325311,1.74533,4010.7,4010.0,1.07893146]
[1733614325480,0.86321829,4010.6,4010.0,1.07893146]
[1733614325683,1.74533,4010.7,4010.0,1.07893146]
[1733614325932,0.86318993,4010.6,4010.0,1.07893146]
[1733614326132,1.74533,4010.7,4010.0,1.07893146]
[1733614327814,0.86313053,4010.6,4010.0,1.07893146]
[1733614328123,1.74533,4010.7,4010.0,1.07893146]
[1733614328326,0.86304937,4010.6,4010.0,1.07893146]
[1733614328501,1.74533,4010.7,4010.0,1.07893146]
[1733614328705,0.86301092,4010.6,4010.0,1.07893146]
[1733614328908,1.74533,4010.7,4010.0,1.07893146]
[1733614329116,0.86302787,4010.6,4010.0,1.07893146]
[1733614329329,1.74533,4010.7,4010.0,1.07893146]
[1733614329909,0.86295894,4010.6,4010.0,1.07893146]
[1733614330110,1.74533,4010.7,4010.0,1.07893146]
[1733614330312,0.86292508,4010.6,4010.0,1.07893146]
[1733614330535,1.04374841,4010.8,4010.0,1.07893146]
[1733614330738,2.15725963,4010.7,4010.0,1.07893146]
[1733614330940,1.04374841,4010.8,4010.0,1.07893146]
[1733614331145,0.86289546,4010.7,4010.0,1.07893146]
[1733614331441,1.7453,4010.8,4010.0,1.07893146]
[1733614331599,0.86284551,4010.7,4010.0,1.07893146]
[1733614331800,2.78904841,4010.8,4010.0,1.07893146]
[1733614332102,0.86284872,4010.7,4010.0,1.07893146]
[1733614332302,2.78904841,4010.8,4010.0,1.07893146]
[1733614332497,0.86283373,4010.7,4010.0,1.07893146]
[1733614332698,1.7453,4010.8,4010.0,1.07893146]
[1733614333015,0.86280646,4010.7,4010.3,1.07893146]
[1733614333209,1.04374841,4010.9,4010.4,0.7912]
[1733614333410,1.04939391,4010.8,4010.4,0.7912]
[1733614333643,1.04374841,4010.9,4010.4,0.7912]
[1733614333813,1.0493959,4010.8,4010.4,0.7912]
[1733614334140,1.04374841,4010.9,4010.4,0.7912]
[1733614334434,1.0494493,4010.8,4010.4,0.7912]
[1733614334732,1.04374841,4011.0,4010.4,0.7912]
[1733614334937,4.14238261,4011.1,4010.4,0.7912]
[1733614334938,3.38731482,4010.9,4010.4,0.7912]
[1733614335097,1.87534841,4011.1,4010.4,0.7912]
[1733614335298,3.38722254,4011.0,4010.4,0.7912]
[1733614335506,1.04941974,4010.9,4010.4,0.7912]
[1733614335816,0.18671682,4010.8,4010.4,0.7912]
[1733614336015,1.87534841,4011.1,4010.4,0.7912]
[1733614336210,2.34372811,4011.0,4010.4,0.7912]
[1733614336537,1.0495882,4010.9,4010.4,0.7912]
[1733614336748,0.18682826,4010.8,4010.4,0.7912]
[1733614336930,1.04374841,4011.0,4010.4,0.7912]
[1733614337131,1.04963225,4010.9,4010.4,0.7912]
[1733614337329,1.04374841,4011.0,4010.4,0.7912]
[1733614337330,0.18685225,4010.8,4010.4,0.7912]
[1733614337548,1.04374841,4011.0,4010.4,0.7912]
[1733614337839,1.04974326,4010.9,4010.4,0.7912]
[1733614338025,0.1868563,4010.8,4010.4,0.7912]
[1733614338232,1.04374841,4011.0,4010.4,0.7912]
[1733614338416,2.3443691,4010.9,4010.4,0.7912]
[1733614338603,0.18685353,4010.8,4010.4,0.7912]
[1733614338823,1.04374841,4011.0,4010.4,0.7912]
[1733614339023,1.04986061,4010.9,4010.4,0.7912]
[1733614339248,0.18685368,4010.8,4010.4,0.7912]
[1733614339455,1.04374841,4011.0,4010.4,0.7912]
[1733614339762,2.34468965,4010.9,4010.4,0.7912]
[1733614340096,1.04998616,4010.8,4010.4,0.7912]
[1733614340224,1.04374841,4010.9,4010.4,0.7912]
[1733614340430,1.05012307,4010.8,4010.4,0.7912]
[1733614340631,1.04374841,4010.9,4010.4,0.7912]
[1733614340834,1.0500835,4010.8,4010.4,0.7912]
[1733614341058,1.04374841,4010.9,4010.4,0.7912]
[1733614341229,2.34509095,4010.8,4010.4,0.7912]
[1733614341443,1.04374841,4010.9,4010.4,0.7912]
[1733614341756,2.34516167,4010.8,4010.4,0.7912]
[1733614341920,1.04374841,4010.9,4010.4,0.7912]
[1733614342121,2.34516397,4010.8,4010.4,0.7912]
[1733614342361,1.05018559,4010.7,4010.4,0.7912]
[1733614342675,1.04374841,4010.8,4010.4,0.7912]
[1733614342966,2.34543189,4010.7,4010.4,0.7912]
[1733614343164,0.86351122,4010.6,4010.4,0.7912]
[1733614343459,1.04374841,4010.8,4010.4,0.7912]
[1733614343645,2.34570138,4010.7,4010.4,0.7912]
[1733614343853,0.86353169,4010.6,4010.4,0.7912]
[1733614344060,1.04374841,4010.7,4010.4,0.7912]
[1733614344263,2.3460348,4010.6,4010.4,0.7912]
[1733614344469,0.86365168,4010.5,4010.4,0.7912]
[1733614345345,2.15934645,4010.5,4010.4,0.7912]
[1733614345875,2.15934645,4010.5,4009.7,0.12605071]
[1733614345876,3.58090502,4010.5,4009.2,1.79608145]
[1733614346056,1.04475418,4010.1,4009.2,0.7566]
[1733614346397,0.8639917,4010.0,4009.2,0.7566]
[1733614346561,1.04475418,4010.1,4009.2,0.7566]
[1733614346748,2.15977555,4010.0,4009.3,0.18355315]
[1733614346936,0.86391022,4009.9,4009.3,0.18355315]
[1733614347269,1.04475418,4010.0,4009.3,0.18355315]
[1733614347471,2.15977431,4009.9,4009.4,1.07893146]
[1733614347768,1.04475418,4010.0,4009.4,1.07893146]
[1733614347982,0.8639428,4009.9,4009.4,1.07893146]
[1733614348282,1.04475418,4010.0,4009.4,1.07893146]
[1733614348449,0.86394854,4009.9,4009.4,1.07893146]
[1733614348648,1.04475418,4010.0,4009.4,1.07893146]
[1733614348976,0.86394751,4009.9,4009.4,1.07893146]
[1733614349269,0.86412002,4009.8,4009.4,1.07893146]
[1733614349584,1.04475418,4010.0,4009.4,1.07893146]
[1733614349875,0.86399452,4009.9,4009.4,1.07893146]
[1733614350043,1.04475418,4010.0,4009.4,1.07893146]
[1733614350253,2.16050698,4009.9,4009.4,1.07893146]
[1733614350442,1.04475418,4010.0,4009.4,1.07893146]
[1733614350443,0.86420279,4009.8,4009.4,1.07893146]
[1733614350649,1.04475418,4010.0,4009.4,1.45544192]
[1733614350845,0.86408814,4009.9,4009.4,1.45544192]
[1733614351143,1.04475418,4010.0,4009.4,1.45544192]
[1733614351378,0.86430632,4009.9,4009.4,1.45544192]
[1733614351586,0.86425922,4009.8,4009.4,1.45544192]
[1733614351764,1.04475418,4010.0,4009.4,1.45544192]
[1733614351967,2.16060312,4009.9,4009.4,1.45544192]
[1733614352161,0.86424125,4009.8,4009.4,1.45544192]
[1733614352363,1.04475418,4009.9,4009.7,1.07893146]
[1733614352592,1.56562261,4010.1,4009.7,1.07893146]
[1733614352593,1.04475418,4010.1,4009.7,1.07893146]
[1733614352755,0.8139,4010.9,4009.5,0.41415751]
[1733614352756,1.04475418,4010.2,4010.0,1.07893146]
[1733614352953,1.04475418,4010.4,4010.0,1.07893146]
[1733614353153,3.20522728,4010.3,4010.0,1.07893146]
[1733614353389,0.86418924,4010.2,4010.1,0.35794315]
[1733614354395,2.16046013,4010.2,4010.1,0.35794315]
[1733614354557,0.86418924,4010.2,4010.1,0.35794315]
[1733614354756,0.86418895,4010.2,4010.1,0.35794315]
[1733614355656,0.86419103,4010.2,4010.1,0.35794315]
[1733614355857,1.04475418,4010.4,4010.1,0.35794315]
[1733614356092,2.16046371,4010.3,4010.1,0.35794315]
[1733614356292,0.86418556,4010.2,4010.1,0.35794315]
[1733614356457,1.04475418,4010.4,4010.1,2.10353315]
[1733614356655,2.16043455,4010.3,4010.1,2.10353315]
[1733614356897,0.86417382,4010.2,4010.1,2.10353315]
[1733614357664,0.86417382,4010.2,4010.1,2.85833315]
[1733614360117,1.04475418,4010.4,4010.1,1.11274315]
[1733614360280,2.16050688,4010.3,4010.2,1.96469746]
[1733614361977,3.20526106,4010.3,4010.2,1.96469746]
[1733614363510,2.16050688,4010.3,4010.2,1.96469746]
[1733614365630,3.20526106,4010.3,4010.2,1.96469746]
[1733614365788,3.20557538,4010.3,4010.2,1.96469746]
[1733614366189,0.86432848,4010.3,4010.2,1.96469746]
[1733614366615,1.04475418,4010.5,4010.4,1.74546]
[1733614366801,2.16071158,4010.5,4010.4,1.74546]
[1733614367001,3.20546576,4010.5,4010.4,1.74546]
[1733614367736,3.20598774,4010.5,4010.4,1.74546]
[1733614368208,2.16071158,4010.5,4010.4,1.74546]
[1733614368744,3.20597641,4010.5,4010.4,1.74546]
[1733614369296,3.30124391,4010.5,4010.4,1.74546]
[1733614369494,0.95955213,4010.5,4010.4,2.87997915]
[1733614369695,0.95951619,4010.5,4010.4,2.87997915]
[1733614369930,0.0952675,4010.5,4010.4,2.87997915]
[1733614372934,0.0952675,4010.5,4010.4,3.95891061]
[1733614377113,0.0952675,4010.5,4010.4,5.03784207]
[1733614377523,7.5e-06,4010.5,4010.4,6.07732352]
[1733614377836,7.5e-06,4010.5,4010.4,5.03784207]
[1733614379146,1.03548543,4011.6,4011.5,1.74498]
[1733614379434,3.19384081,4011.6,4011.5,1.74498]
[1733614380230,3.19384081,4011.6,4011.3,1.07893146]
[1733614380446,1.03548543,4011.6,4011.3,1.07893146]
[1733614380741,1.03548543,4011.6,4011.4,1.74502]
[1733614382706,1.03548543,4011.6,4010.7,0.12321166]
[1733614382707,1.03548543,4011.6,4010.9,1.74522]
[1733614383046,1.03548543,4011.6,4010.5,1.74541]
[1733614383047,1.04526483,4011.3,4010.6,1.07893146]
[1733614383203,3.20252856,4011.2,4010.6,1.07893146]
[1733614383404,2.15726373,4011.1,4010.6,1.07893146]
[1733614383646,0.7775,4010.9,4010.2,1.74553]
[1733614383805,0.86297848,4010.8,4010.2,2.82446146]
[1733614384006,0.7775,4010.9,4010.2,2.82446146]
[1733614384206,0.86297917,4010.8,4010.2,2.82446146]
[1733614384405,1.82276483,4010.9,4010.2,2.82446146]
[1733614384618,0.7775,4010.9,4010.2,2.82446146]
[1733614385345,0.86300149,4010.8,4010.2,2.82446146]
[1733614385545,0.7775,4010.9,4010.2,2.82446146]
[1733614385742,0.86300416,4010.8,4010.2,2.82446146]
[1733614386043,0.7775,4010.9,4010.2,2.82446146]
[1733614386214,0.86300719,4010.8,4010.2,2.82446146]
[1733614386541,0.7775,4010.9,4010.3,1.74549]
[1733614386748,0.86300859,4010.8,4010.3,1.74549]
[1733614387046,0.7775,4010.9,4010.3,1.74549]
[1733614387744,0.7775,4010.9,4010.5,1.07893146]
[1733614387941,1.81356483,4011.4,4011.0,1.74517]
[1733614388250,0.86288398,4011.3,4011.0,1.74517]
[1733614388543,0.7683,4011.4,4011.0,1.74517]
[1733614388969,0.86277161,4011.3,4011.0,1.74517]
[1733614389189,0.7683,4011.4,4011.0,1.74517]
[1733614389463,0.86278744,4011.3,4011.0,1.74517]
[1733614389673,0.7683,4011.4,4011.0,1.74517]
[1733614389854,0.86275969,4011.3,4011.0,1.74517]
[1733614390053,0.7683,4011.4,4011.0,1.74518]
[1733614390252,0.86275413,4011.3,4011.0,1.74518]
[1733614390455,0.7683,4011.4,4011.0,1.74518]
[1733614390766,0.86271192,4011.3,4011.0,1.74518]
[1733614390983,0.7683,4011.4,4010.8,2.82421146]
[1733614391275,2.15682898,4011.3,4010.8,2.82421146]
[1733614391478,0.86273159,4011.2,4010.8,2.82421146]
[1733614391630,1.04526483,4011.3,4010.8,2.82421146]
[1733614391830,0.86271127,4011.2,4010.8,2.82421146]
[1733614392074,0.7683,4011.4,4010.8,2.82421146]
[1733614392275,0.86269264,4011.3,4010.8,2.82421146]
[1733614392569,1.04526483,4011.6,4011.2,1.74511]
[1733614392733,2.1566953,4011.5,4011.2,1.74511]
[1733614392931,2.15672474,4011.4,4011.2,1.74511]
[1733614393173,1.04526483,4011.5,4011.2,1.74511]
[1733614393376,1.04526483,4011.6,4011.2,1.74511]
[1733614393673,0.86267163,4011.5,4011.2,1.74511]
[1733614393876,1.04526483,4011.7,4011.2,1.74511]
[1733614394175,3.38841125,4011.6,4011.2,1.74511]
[1733614394373,0.86267113,4011.5,4011.2,1.74511]
[1733614394547,1.04526483,4011.6,4011.2,1.74511]
[1733614394744,2.15678481,4011.5,4011.2,1.74511]
[1733614395072,1.04526483,4011.6,4011.2,1.74511]
[1733614395371,2.15680085,4011.5,4011.2,1.74511]
[1733614395568,1.04526483,4011.7,4011.2,1.74511]
[1733614395754,2.15692158,4011.6,4011.2,1.74511]
[1733614395942,1.04526483,4011.7,4011.2,1.74511]
[1733614395943,0.86276863,4011.5,4011.2,1.74511]
[1733614396138,1.04526483,4011.7,4011.0,0.814]
[1733614396339,0.86276465,4011.6,4011.0,2.55919]
[1733614396673,1.04526483,4011.7,4011.0,1.74519]
[1733614396832,0.86280904,4011.6,4011.0,1.74519]
[1733614397042,1.04526483,4011.7,4011.0,1.74519]
[1733614397353,0.86280778,4011.6,4011.0,1.74519]
[1733614397555,1.04526483,4011.7,4011.0,1.74519]
[1733614397767,3.37272218,4011.6,4010.7,1.74529]
[1733614397976,3.37272218,4011.6,4010.6,1.07893146]
[1733614397977,0.86286004,4011.5,4010.6,1.07893146]
[1733614398288,1.21561952,4011.6,4010.8,1.74528]
[1733614398431,0.86294471,4011.5,4010.8,1.74528]
[1733614398628,1.21561952,4011.6,4010.8,1.74528]
[1733614398856,0.86293534,4011.5,4010.8,1.74528]
[1733614399066,1.21561952,4011.6,4010.8,1.74528]
[1733614399270,0.86295157,4011.5,4010.8,1.74528]
[1733614399476,1.21561952,4011.6,4010.8,1.74528]
[1733614399671,0.86294607,4011.5,4010.8,1.74528]
[1733614399975,0.7907,4011.6,4010.8,1.74528]
[1733614400134,0.7907,4011.6,4010.8,0.28242115]
[1733614400336,0.7907,4011.6,4011.0,1.74517]
[1733614401159,0.7907,4011.6,4010.9,1.07893146]
[1733614401437,1.56562261,4011.9,4011.4,1.74502]
[1733614401438,1.83596483,4011.9,4011.4,1.74502]
[1733614401680,0.86288674,4011.8,4011.4,0.8024]
[1733614401838,0.7907,4011.9,4011.5,1.07893146]
[1733614402039,2.56171014,4012.3,4011.7,1.74488]
[1733614402040,1.83596483,4012.2,4011.7,1.74488]
[1733614402385,1.83596483,4012.2,4011.5,2.82390146]
[1733614402386,0.7907,4012.2,4011.5,2.82390146]
[1733614407384,0.7907,4012.2,4011.5,1.74497]
[1733614411295,0.7907,4012.2,4011.6,1.74493]
[1733614411520,1.04526483,4012.5,4012.1,1.07893146]
[1733614411796,2.08749682,4012.9,4012.5,1.07893146]
[1733614411797,1.04526483,4012.8,4012.5,1.07893146]
[1733614411997,2.36822261,4012.9,4012.6,0.28235415]
[1733614411998,0.8026,4012.9,4012.6,0.28235415]
[1733614412155,1.84786483,4013.2,4012.4,1.74458]
[1733614412357,0.8026,4013.2,4012.4,1.74458]
[1733614412661,2.15482144,4013.1,4012.3,1.07893146]
[1733614412892,1.84786483,4013.2,4012.5,1.74453]
[1733614413193,2.1548292,4013.1,4012.9,1.07893146]
[1733614413355,1.04526483,4013.5,4012.9,1.07893146]
[1733614413559,0.86164957,4013.4,4012.9,0.18632315]
[1733614413800,1.04526483,4013.5,4012.6,2.82340146]
[1733614413981,2.154107,4013.4,4012.7,1.74445]
[1733614414182,1.04526483,4013.5,4012.7,1.74445]
[1733614414502,2.1538378,4013.4,4012.7,1.74445]
[1733614414701,0.86165105,4013.3,4012.6,1.07893146]
[1733614414873,1.29220052,4013.4,4012.7,0.18632315]
[1733614415230,2.15369599,4013.3,4012.7,0.18632315]
[1733614415402,1.04526483,4013.4,4012.7,0.18632315]
[1733614415565,0.86136295,4013.3,4012.7,0.18632315]
[1733614415884,1.29203661,4013.4,4012.7,0.18632315]
[1733614416073,0.86137563,4013.3,4012.7,0.18632315]
[1733614416400,1.29206334,4013.4,4012.7,0.18632315]
[1733614416567,1.29206334,4013.4,4012.5,2.52883]
[1733614416568,0.86119406,4013.3,4012.5,2.52883]
[1733614416762,1.29206334,4013.4,4012.5,2.52883]
[1733614416963,0.86119402,4013.3,4012.5,2.52883]
[1733614417160,1.29179475,4013.4,4012.5,2.52883]
[1733614417461,1.47756149,4013.5,4012.6,1.07893146]
[1733614417656,0.86101737,4013.4,4012.6,1.43970761]
[1733614417857,1.29152718,4013.5,4012.6,1.43970761]
[1733614418400,0.86089745,4013.4,4012.6,1.43970761]
[1733614418704,0.86090486,4013.3,4012.6,1.43970761]
[1733614419299,0.18602744,4013.4,4012.6,1.43970761]
[1733614419500,1.47755462,4013.5,4012.6,1.43970761]
[1733614419808,0.18599319,4013.5,4012.7,0.29049947]
[1733614420572,3.3301852,4013.6,4012.7,0.29049947]
[1733614420813,0.86071235,4013.5,4012.7,0.29049947]
[1733614421485,0.18599855,4013.5,4013.0,0.7818]
[1733614421701,0.99339855,4013.6,4013.0,0.7818]
[1733614421904,0.86065294,4013.5,4013.0,0.7818]
[1733614422100,3.32964389,4013.6,4012.9,1.07893146]
[1733614422414,1.04665646,4013.5,4012.9,1.07893146]
[1733614422575,0.18599855,4013.5,4012.9,1.07893146]
[1733614423216,0.8074,4013.6,4012.9,1.46849955]
[1733614423423,0.99340925,4013.6,4012.9,3.21285955]
[1733614423580,1.20974913,4014.0,4013.6,1.74405]
[1733614423781,0.1644843,4014.0,4013.6,1.86073146]
[1733614423980,0.1644843,4014.0,4013.6,0.7818]
[1733614424187,0.1644843,4014.0,4013.2,0.7818]
[1733614424414,0.1644843,4014.0,4013.3,1.07893146]
[1733614425180,0.1644843,4014.0,4013.2,1.86073146]
[1733614426308,0.1644843,4014.0,4013.9,1.07893146]
[1733614426720,0.1644843,4014.0,4013.8,0.7631]
[1733614428419,0.1644843,4014.0,4013.8,2.50707]
[1733614428596,0.1644843,4014.0,4013.9,2.82286146]
[1733614432316,0.1644843,4014.0,4013.4,1.07893146]
[1733614432532,0.1644843,4014.0,4013.8,1.07893146]
[1733614432730,0.1644843,4014.0,4013.8,1.88943146]
[1733614434074,0.1644843,4014.0,4013.5,1.02129296]
[1733614434353,0.7518,4013.9,4013.2,1.07893146]
[1733614434657,0.7518,4013.9,4013.5,1.07893146]
[1733614434842,0.7518,4013.9,4013.2,1.07893146]
[1733614436767,0.7518,4013.9,4013.1,0.7963]
[1733614436927,0.7518,4013.9,4013.0,1.07893146]
[1733614438002,2.49574,4013.9,4013.0,1.07893146]
[1733614442967,0.7518,4013.9,4013.3,1.07893146]
[1733614443165,0.7518,4013.9,4013.3,1.85173146]
[1733614447711,0.7518,4013.9,4013.3,1.07893146]
[1733614448515,0.7518,4013.9,4013.4,0.55]
[1733614448715,0.7518,4013.9,4013.6,1.07893146]
[1733614448953,0.1644843,4014.0,4013.6,1.07893146]
[1733614449678,0.1644843,4014.0,4013.7,0.55]
[1733614450181,0.1644843,4014.0,4013.7,1.3084]
[1733614451358,0.1644843,4014.0,4013.7,0.7584]
[1733614451561,0.1644843,4014.0,4013.8,0.55]
[1733614453151,0.1644843,4014.0,4013.9,1.62893146]
[1733614457389,0.1644843,4014.0,4013.9,3.37286146]
[1733614458163,0.1644843,4014.0,4013.9,4.13126146]
[1733614459750,0.1644843,4014.0,4013.9,2.38733146]
[1733614459987,0.1644843,4014.0,4013.9,0.96313515]
[1733614461795,0.1644843,4014.0,4013.9,3.46546515]
[1733614462370,0.1644843,4014.0,4013.9,1.72153515]
[1733614464285,0.1644843,4014.0,4013.9,4.72153515]
[1733614464683,0.1644843,4014.0,4013.9,6.46546515]
[1733614467077,0.1644843,4014.0,4013.9,4.72153515]
[1733614467714,0.1644843,4014.0,4013.9,6.46546515]
[1733614468609,0.1644843,4014.0,4013.9,0.41313515]
[1733614468821,0.1644843,4014.0,4013.9,1.07893146]
[1733614470883,0.1644843,4014.0,4013.6,4.03760993]
[1733614471116,0.8061,4013.9,4013.4,1.03760993]
[1733614471397,0.8061,4013.9,4013.2,1.555878]
[1733614471398,0.8061,4013.9,4013.2,1.07893146]
[1733614472614,0.8061,4013.9,4013.1,1.62893146]
[1733614473224,0.8061,4013.9,4013.1,5.30840751]
[1733614474303,0.8061,4013.9,4013.4,1.07893146]
[1733614477023,0.8061,4013.9,4013.1,1.22947605]
[1733614477182,0.8061,4013.9,4013.2,1.07893146]
[1733614488293,0.7924,4013.5,4012.5,0.8324]
[1733614488589,0.7924,4013.5,4012.7,1.07893146]
[1733614489789,0.7806,4013.6,4012.4,3.0]
[1733614490034,0.7806,4013.6,4012.7,1.07893146]
[1733614490194,0.7806,4013.5,4012.7,1.07893146]
[1733614490729,1.74425,4013.2,4012.3,3.0]
[1733614490894,0.7806,4013.0,4012.0,4.03978363]
[1733614491090,0.7806,4013.0,4011.9,1.03978363]
[1733614491293,0.7806,4013.0,4012.3,1.07893146]
[1733614491294,0.7806,4012.9,4012.3,1.07893146]
[1733614491793,0.7806,4012.9,4012.3,1.36129561]
[1733614492201,0.7806,4012.9,4012.3,1.07893146]
[1733614493794,0.7806,4012.9,4012.6,1.07893146]
[1733614499211,0.7806,4012.9,4011.9,3.0]
[1733614499407,0.7806,4012.9,4012.2,1.07893146]
[1733614499613,0.8085,4012.7,4012.2,1.07893146]
[1733614499933,1.7445,4012.6,4011.7,3.0]
[1733614500139,1.7445,4012.6,4011.8,1.07893146]
[1733614500140,0.7845,4012.5,4011.8,1.07893146]
[1733614500433,0.7845,4012.4,4011.8,1.07893146]
[1733614501433,0.7845,4012.4,4012.1,1.07893146]
[1733614503841,0.7845,4012.7,4012.1,1.07893146]
[1733614507745,0.7845,4012.7,4012.1,2.82363146]
[1733614509429,0.7845,4012.7,4012.1,1.07893146]
[1733614509743,0.7845,4012.7,4012.2,1.74467]
[1733614509947,0.7845,4012.7,4012.3,0.28236015]
[1733614510172,0.7845,4012.7,4012.4,1.07893146]
[1733614511524,0.7508,4013.5,4012.4,1.07893146]
[1733614511836,0.7508,4013.5,4012.6,1.74448]
[1733614512030,0.7508,4013.5,4012.8,1.07893146]
[1733614513228,0.7508,4013.5,4011.9,1.03978363]
[1733614513229,0.7536,4013.3,4012.3,1.7446]
[1733614513480,0.7536,4013.3,4012.5,1.07893146]
[1733614514050,0.7536,4013.3,4012.5,2.82347146]
[1733614514861,0.7536,4013.3,4012.5,1.07893146]
[1733614515179,0.7536,4013.3,4012.6,1.74449]
[1733614518562,1.04289539,4013.9,4013.2,1.07893146]
[1733614518739,0.1644843,4014.0,4013.7,3.0]
[1733614518932,0.1644843,4014.0,4013.4,1.04014369]
[1733614519135,0.1644843,4014.0,4013.3,1.07893146]
[1733614519673,0.1644843,4014.0,4013.1,1.07893146]
[1733614519674,0.7803,4013.9,4013.1,1.07893146]
[1733614520173,0.7803,4013.9,4013.1,2.82320146]
[1733614520377,0.7803,4013.9,4013.1,3.50953598]
[1733614520635,0.7803,4013.9,4013.1,0.68633452]
[1733614520838,0.7803,4013.9,4013.3,1.74418]
[1733614522438,0.7803,4013.9,4013.3,1.74417]
[1733614527226,0.7803,4013.9,4013.1,5.43061452]
[1733614528034,0.7803,4013.9,4013.2,2.93103104]
[1733614528952,0.1644843,4014.0,4013.7,1.74401]
[1733614529748,0.1644843,4014.0,4013.7,1.744]
[1733614530049,0.1644843,4014.0,4013.8,1.74398]
[1733614530573,0.1644843,4014.0,4013.8,1.74395]
[1733614531047,0.1644843,4014.0,4013.9,1.74393]
[1733614532259,0.1644843,4014.0,4013.9,1.84324713]
[1733614537570,0.1644843,4014.0,4013.9,2.52696258]
[1733614537714,0.1644843,4014.0,4013.9,5.50205241]
[1733614538053,0.1644843,4014.0,4013.9,1.84324713]
[1733614538268,0.1644843,4014.0,4013.9,6.72768665]
[1733614542258,0.1644843,4014.0,4013.9,7.06014172]
[1733614542920,0.7733,4015.3,4013.9,7.06014172]
[1733614543122,4.3233,4015.3,4015.0,1.74345]
[1733614543316,4.3233,4015.3,4015.1,0.09672063]
[1733614543917,4.3233,4015.3,4014.8,1.74354]
[1733614544118,4.3233,4015.3,4014.9,0.09672063]
[1733614545330,4.3233,4015.3,4014.7,1.74359]
[1733614545540,4.3233,4015.3,4014.8,0.09672063]
[1733614545741,7.8733,4015.3,4014.7,2.3510234]
[1733614546058,7.8733,4015.3,4014.8,0.09672063]
[1733614546417,7.8733,4015.3,4014.7,2.3510234]
[1733614546974,7.8733,4015.3,4014.8,0.09672063]
[1733614547168,7.8733,4015.3,4014.7,2.3510234]
[1733614547469,7.8733,4015.3,4014.8,0.09672063]
[1733614547828,7.8733,4015.3,4014.7,2.3510234]
[1733614548032,7.8733,4015.3,4014.9,0.09672063]
[1733614548333,7.8733,4015.3,4014.7,2.3510234]
[1733614548334,11.4233,4015.3,4015.0,0.09672063]
[1733614548563,11.4233,4015.3,4014.7,2.3510234]
[1733614548763,11.4233,4015.3,4014.8,3.78305515]
[1733614549270,11.4233,4015.3,4014.8,0.09672063]
[1733614549433,0.7733,4015.2,4014.8,0.09672063]
[1733614549638,0.7537,4014.9,4013.7,2.32359764]
[1733614550079,0.7537,4014.9,4013.8,0.09284242]
[1733614550260,0.7537,4014.9,4013.9,1.74393]
[1733614550572,0.7537,4014.9,4014.1,1.07205256]
[1733614550750,0.7537,4014.8,4014.2,0.09284242]
[1733614552034,1.7436,4014.7,4014.2,0.09284242]
[1733614552238,0.7537,4014.6,4014.2,0.09284242]
[1733614552437,1.7439,4014.0,4012.9,1.04014369]
[1733614552748,0.7537,4013.9,4013.0,0.09320271]
[1733614553237,2.49764,4013.9,4013.0,0.09320271]
[1733614553581,0.7537,4013.8,4012.7,2.32362608]
[1733614553735,1.74403,4013.7,4012.8,0.59125698]
[1733614553938,0.7537,4013.6,4012.8,0.09320271]
[1733614557180,0.7537,4013.6,4012.8,4.83760271]
[1733614557385,0.7537,4013.6,4013.0,1.74429]
[1733614557570,0.7537,4013.6,4013.1,0.09329429]